[Event "DVM U12 2024"]
[Site "Heidelberg"]
[Date "2024.12.28"]
[Round "4"]
[White "Shen, Tingrui"]
[Black "Fadeev, Justin Michael"]
[Result "1-0"]
[ECO "A12"]
[WhiteElo "2164"]
[BlackElo "1894"]
[Annotator "RC"]
[PlyCount "77"]
[EventDate "2024.12.23"]
[EventType "team-tourn"]
[EventRounds "7"]
[EventCountry "GER"]
[SourceTitle "playchess.com"]
[Source "ChessBase"]
[SourceQuality "1"]
[TimeControl "40/5400+30:1800+30"]

1. b3 {[%emt 0:01:33]} d5 {[%emt 0:00:42]} 2. Bb2 {[%emt 0:01:15]} Nf6 {[%emt 0:00:59]} 3. Nf3 {[%emt 0:00:20]} Bf5 {[%emt 0:00:56]} 4. d3 {[%emt 0:01:03]} h6 {[%emt 0:01:45]} 5. Nbd2 {[%emt 0:00:14]} e6 {[%emt 0:00:21]} 6. c4 {[%emt 0:02:07]} c6 {[%emt 0:04:22]} 7. g3 {[%emt 0:03:01]} Be7 {[%emt 0:00:53]} 8. Bg2 {[%emt 0:02:14]} O-O {[%emt 0:00:42]} 9. O-O {[%emt 0:00:30]} Na6 {[%emt 0:01:58]} 10. Re1 {[%emt 0:00:42]} Bh7 {[%emt 0:01:50]} 11. a3 {[%emt 0:00:42]} Nd7 {[%emt 0:03:10]} 12. b4 {[%emt 0:03:31]} Bf6 {[%emt 0:01:54]} 13. d4 {[%emt 0:01:26]} c5 {[%emt 0:09:07]} 14. b5 {[%emt 0:01:43]} Nc7 {[%emt 0:00:43]} 15. a4 {[%emt 0:01:42]} cxd4 {[%emt 0:01:47]} 16. Nxd4 {[%emt 0:02:37]} Nc5 {[%emt 0:01:54]} 17. N2b3 {[%emt 0:01:49]} Nxb3 {[%emt 0:11:23]} 18. Qxb3 {[%emt 0:00:17]} dxc4 {[%emt 0:00:50]} 19. Qxc4 {[%emt 0:00:21]} Nd5 {[%emt 0:00:23]} 20. e3 {[%emt 0:04:00]} Rc8 {[%emt 0:04:23]} 21. Qb3 {[%emt 0:01:20]} Qa5 {[%emt 0:02:47]} 22. e4 {[%emt 0:07:24]} Qb4 {[%emt 0:08:23]} 23. Qxb4 {[%emt 0:03:12]} Nxb4 {[%emt 0:00:03]} 24. e5 {[%emt 0:01:04]} Be7 {[%emt 0:04:06]} 25. Bxb7 {[%emt 0:04:06]} Rc4 {[%emt 0:01:24]} 26. Nc6 {[%emt 0:06:36]} Bc5 {[%emt 0:02:53]} 27. Nxb4 {[%emt 0:06:34]} Bxb4 {[%emt 0:00:22]} 28. Red1 {[%emt 0:01:16]} Rc2 {[%emt 0:01:01]} 29. Bd4 {[%emt 0:02:20]} Bg6 {[%emt 0:04:12]} 30. Bc6 {[%emt 0:08:14]} Bh5 {[%emt 0:01:48]} 31. Rdc1 {[%emt 0:00:29]} Rd2 {[%emt 0:02:04]} 32. Bxa7 {[%emt 0:00:49]} f6 {[%emt 0:00:33]} 33. exf6 {[%emt 0:01:15]} Rxf6 {[%emt 0:00:07]} 34. Be3 {[%emt 0:00:32]} Rd8 {[%emt 0:00:59]} 35. a5 {[%emt 0:00:16]} Bd2 {[%emt 0:00:11]} 36. Bxd2 {[%emt 0:01:33]} Rxd2 {[%emt 0:00:01]} 37. a6 {[%emt 0:00:32]} Rfxf2 {[%emt 0:00:36]} 38. a7 {[%emt 0:00:52]} Be8 {[%emt 0:00:22]} 39. a8=Q {[%emt 0:00:27]} 1-0

[Event "DVM U12 2024"]
[Site "Heidelberg"]
[Date "2024.12.28"]
[Round "4"]
[White "Gersemann, Karl"]
[Black "Sutharjan, Dakxwin"]
[Result "1-0"]
[ECO "B11"]
[WhiteElo "2012"]
[BlackElo "1917"]
[Annotator "NA RC"]
[PlyCount "49"]
[EventDate "2024.12.23"]
[EventType "team-tourn"]
[EventRounds "7"]
[EventCountry "GER"]
[SourceTitle "playchess.com"]
[Source "ChessBase"]
[SourceQuality "1"]
[TimeControl "40/5400+30:1800+30"]

1. e4 {[%emt 0:00:01]} c6 {[%emt 0:00:05]} 2. Nc3 {[%emt 0:00:05]} d5 {[%emt 0:00:06]} 3. Nf3 {[%emt 0:00:05]} Nf6 {[%emt 0:00:16]} 4. e5 {[%emt 0:00:17]} Ne4 {[%emt 0:00:11]} 5. Ne2 {[%emt 0:00:08]} Qb6 {[%emt 0:02:10]} 6. d4 {[%emt 0:00:10]} e6 {[%emt 0:04:41]} 7. Ng3 {[%emt 0:01:21]} Nxg3 {[%emt 0:09:48]} 8. fxg3 {[%emt 0:00:09]} c5 {[%emt 0:00:25]} 9. Bd3 {[%emt 0:00:08]} Nc6 {[%emt 0:03:08]} 10. O-O {[%emt 0:01:41]} h6 {[%emt 0:06:11]} (10... cxd4 $142 11. Qe2 h6) 11. a3 {[%emt 0:00:26]} Bd7 {[%emt 0:03:30]} 12. g4 {[%emt 0:01:26]} O-O-O {[%emt 0:00:57]} 13. Kh1 {[%emt 0:00:51]} Be7 $14 {[%emt 0:05:36]} ({Black should play} 13... cxd4 $11 14. Qe2 Kb8) 14. dxc5 {[%emt 0:04:17]} Bxc5 {[%emt 0:00:19]} 15. c3 {[%emt 0:01:18]} g6 {[%emt 0:06:58]} 16. b4 {[%emt 0:00:13]} Be3 {[%emt 0:00:41]} 17. Qe2 {[%emt 0:01:37]} Bxc1 {[%emt 0:01:38]} 18. Raxc1 {[%emt 0:01:57]} Kb8 {[%emt 0:02:31]} 19. a4 {[%emt 0:01:02]} a5 {[%emt 0:01:52]} 20. b5 {[%emt 0:02:17]} Ne7 {[%emt 0:01:16]} 21. Nd4 {[%emt 0:01:29]} Rhf8 {[%emt 0:03:50]} 22. Qe3 {[%emt 0:02:43]} g5 {[%emt 0:03:37]} 23. Nc6+ {[%emt 0:00:07]} Nxc6 {[%emt 0:02:49]} 24. Qxb6 {[%emt 0:00:09]} Nxe5 {[%emt 0:00:13]} 25. Qd6+ {[%emt 0:01:15]} 1-0

[Event "DVM U12 2024"]
[Site "Heidelberg"]
[Date "2024.12.28"]
[Round "4"]
[White "Engelhaupt, Henry"]
[Black "Tu, Tiffany"]
[Result "1-0"]
[ECO "C54"]
[WhiteElo "1905"]
[BlackElo "1670"]
[Annotator "NA RC"]
[PlyCount "99"]
[EventDate "2024.12.23"]
[EventType "team-tourn"]
[EventRounds "7"]
[EventCountry "GER"]
[SourceTitle "playchess.com"]
[Source "ChessBase"]
[SourceQuality "1"]
[TimeControl "40/5400+30:1800+30"]

1. e4 {[%emt 0:00:02]} e5 {[%emt 0:00:07]} 2. Nf3 {[%emt 0:00:04]} Nc6 {[%emt 0:00:08]} 3. Bc4 {[%emt 0:00:05]} Nf6 {[%emt 0:00:07]} 4. d3 {[%emt 0:00:06]} Bc5 {[%emt 0:00:06]} 5. c3 {[%emt 0:00:08]} d6 {[%emt 0:00:05]} 6. Nbd2 {[%emt 0:00:14]} a6 {[%emt 0:00:17]} 7. a4 {[%emt 0:00:08]} Ba7 {[%emt 0:00:11]} 8. O-O {[%emt 0:00:12]} O-O {[%emt 0:00:17]} 9. h3 {[%emt 0:00:03]} Be6 {[%emt 0:00:15]} 10. Bb3 {[%emt 0:00:28]} h6 {[%emt 0:01:19]} 11. Re1 {[%emt 0:00:19]} Ne7 {[%emt 0:00:40]} 12. Nf1 {[%emt 0:00:49]} Ng6 {[%emt 0:00:19]} 13. Ng3 {[%emt 0:00:29]} c6 {[%emt 0:02:28]} 14. Bc2 {[%emt 0:01:04]} Qd7 {[%emt 0:00:28]} 15. d4 {[%emt 0:03:58]} Rad8 {[%emt 0:04:45]} 16. Be3 {[%emt 0:02:59]} Bb8 {[%emt 0:01:58]} 17. Qe2 {[%emt 0:01:13]} Rfe8 {[%emt 0:01:47]} 18. Rad1 {[%emt 0:00:53]} Qe7 $14 {[%emt 0:02:04]} 19. a5 {[%emt 0:02:44]} Bc7 {[%emt 0:02:40]} 20. b4 {[%emt 0:00:27]} Bd7 {[%emt 0:10:01]} 21. dxe5 {[%emt 0:03:49]} Nxe5 {[%emt 0:01:03]} 22. Bd4 {[%emt 0:04:39]} Nxf3+ {[%emt 0:18:15]} 23. Qxf3 {[%emt 0:00:14]} Nh7 {[%emt 0:01:08]} 24. Nf5 {[%emt 0:03:40]} Bxf5 {[%emt 0:01:47]} 25. Qxf5 {[%emt 0:00:28]} Qg5 {[%emt 0:01:37]} 26. Qxg5 {[%emt 0:10:37]} Nxg5 {[%emt 0:00:39]} 27. f3 {[%emt 0:00:15]} Ne6 {[%emt 0:00:18]} 28. Be3 {[%emt 0:00:17]} Rd7 {[%emt 0:05:57]} 29. Bb3 {[%emt 0:01:37]} Red8 {[%emt 0:01:32]} 30. Rd2 {[%emt 0:01:18]} Rb8 {[%emt 0:03:02]} 31. Red1 {[%emt 0:01:11]} Kf8 {[%emt 0:01:40]} 32. Bxe6 {[%emt 0:01:00]} fxe6 {[%emt 0:01:51]} 33. Bc5 {[%emt 0:01:54]} Rbd8 {[%emt 0:01:43]} 34. e5 {[%emt 0:01:11]} Ke7 {[%emt 0:01:11]} 35. exd6+ {[%emt 0:00:20]} Bxd6 {[%emt 0:00:32]} 36. Rxd6 {[%emt 0:00:13]} Rxd6 {[%emt 0:00:15]} 37. f4 {[%emt 0:00:19]} g6 {[%emt 0:00:57]} 38. Kf2 {[%emt 0:00:39]} g5 {[%emt 0:01:23]} 39. g3 {[%emt 0:00:35]} R8d7 {[%emt 0:02:51]} 40. Ke3 {[%emt 0:00:40]} gxf4+ {[%emt 0:01:01]} 41. gxf4 {[%emt 0:30:24]} h5 {[%emt 0:31:07]} 42. Ke4 {[%emt 0:00:21]} Kf6 {[%emt 0:00:57]} 43. Rxd6 {[%emt 0:00:54]} Rxd6 {[%emt 0:02:37]} 44. Bxd6 {[%emt 0:00:08]} Kg6 {[%emt 0:01:39]} 45. Ke5 {[%emt 0:00:56]} Kf7 {[%emt 0:00:34]} 46. h4 {[%emt 0:00:11]} Ke8 {[%emt 0:00:36]} 47. Kxe6 {[%emt 0:00:18]} Kd8 {[%emt 0:00:18]} 48. f5 {[%emt 0:00:22]} Kc8 {[%emt 0:00:36]} 49. f6 {[%emt 0:00:11]} Kd8 {[%emt 0:00:39]} 50. f7 {[%emt 0:00:11]} 1-0

[Event "DVM U12 2024"]
[Site "Heidelberg"]
[Date "2024.12.28"]
[Round "4"]
[White "Kuhns, David"]
[Black "Liu, Kairui"]
[Result "0-1"]
[ECO "C77"]
[WhiteElo "1904"]
[BlackElo "1559"]
[Annotator "NA RC"]
[PlyCount "108"]
[EventDate "2024.12.23"]
[EventType "team-tourn"]
[EventRounds "7"]
[EventCountry "GER"]
[SourceTitle "playchess.com"]
[Source "ChessBase"]
[SourceQuality "1"]
[TimeControl "40/5400+30:1800+30"]

1. e4 {[%emt 0:00:01]} e5 {[%emt 0:00:01]} 2. Nf3 {[%emt 0:00:08]} Nc6 {[%emt 0:00:04]} 3. Bb5 {[%emt 0:00:04]} a6 {[%emt 0:00:05]} 4. Ba4 {[%emt 0:00:12]} Nf6 {[%emt 0:00:08]} 5. d3 {[%emt 0:00:08]} Be7 {[%emt 0:00:08]} 6. h3 {[%emt 0:00:32] C77: Ruy Lopez: 3...a6 4 Ba4 Nf6, unusual lines.} O-O {[%emt 0:00:08]} 7. c3 {[%emt 0:00:11]} b5 {[%emt 0:00:18]} 8. Bb3 {[%emt 0:00:09]} d5 {[%emt 0:01:36]} 9. Nbd2 {[%emt 0:00:16]} Bb7 {[%emt 0:01:02]} 10. a3 {[%emt 0:00:52]} Qd7 {[%emt 0:01:40]} 11. O-O {[%emt 0:01:19]} Rfe8 {[%emt 0:00:41]} 12. Ba2 {[%emt 0:01:09]} Rad8 {[%emt 0:00:45]} 13. c4 {[%emt 0:00:31]} dxc4 {[%emt 0:00:30]} 14. dxc4 {[%emt 0:00:20]} bxc4 {[%emt 0:00:29]} 15. Bxc4 {[%emt 0:00:17]} Nxe4 {[%emt 0:00:28]} 16. Qe2 {[%emt 0:00:59]} Nxd2 {[%emt 0:00:59]} 17. Nxd2 {[%emt 0:00:16]} Bd6 {[%emt 0:02:30]} 18. Ne4 {[%emt 0:01:07]} Nd4 {[%emt 0:00:53]} 19. Qd3 {[%emt 0:01:41]} Qc6 {[%emt 0:01:32]} 20. f3 {[%emt 0:02:22]} Ne6 {[%emt 0:02:56]} (20... Be7 $19 21. Qc3 Qg6) 21. Be3 {[%emt 0:00:46]} Bc5 $19 {[%emt 0:02:46]} 22. Qc3 {[%emt 0:01:15]} Bxe3+ {[%emt 0:00:19]} 23. Kh1 {[%emt 0:01:17]} Bd4 {[%emt 0:01:05]} 24. Qc2 {[%emt 0:00:31]} Qb6 {[%emt 0:02:23]} 25. Rab1 {[%emt 0:00:30]} Bd5 {[%emt 0:01:53]} 26. Bxd5 {[%emt 0:01:11]} Rxd5 {[%emt 0:00:09]} 27. Rfd1 {[%emt 0:01:40]} Rdd8 {[%emt 0:01:40]} 28. Rd2 {[%emt 0:04:25]} Be3 {[%emt 0:01:25]} 29. Rd3 {[%emt 0:00:41]} Rxd3 {[%emt 0:00:49]} 30. Qxd3 {[%emt 0:00:15]} Rd8 {[%emt 0:00:45]} 31. Qc2 {[%emt 0:00:45]} h6 {[%emt 0:02:29]} 32. Rd1 {[%emt 0:00:31]} Rxd1+ {[%emt 0:00:40]} 33. Qxd1 {[%emt 0:00:16]} Qd4 {[%emt 0:00:42]} 34. Qc2 {[%emt 0:00:49]} Nc5 {[%emt 0:01:16]} 35. Nc3 {[%emt 0:00:58]} Qd3 {[%emt 0:00:55]} 36. Qxd3 {[%emt 0:00:52]} Nxd3 {[%emt 0:00:08]} 37. Nd5 {[%emt 0:00:04]} Bb6 {[%emt 0:00:13]} 38. b4 {[%emt 0:00:29]} Kf8 {[%emt 0:00:47]} 39. a4 {[%emt 0:00:36]} a5 {[%emt 0:00:33]} 40. bxa5 {[%emt 0:00:31]} Bxa5 {[%emt 0:00:08]} 41. g3 {[%emt 0:30:49]} Nb2 {[%emt 0:30:16]} 42. f4 {[%emt 0:00:17]} exf4 {[%emt 0:00:07]} 43. gxf4 {[%emt 0:00:07]} Nxa4 {[%emt 0:00:06]} 44. Ne3 {[%emt 0:00:26]} c5 {[%emt 0:00:18]} 45. Nc4 {[%emt 0:00:18]} Bc3 {[%emt 0:00:25]} 46. Kg2 {[%emt 0:00:09]} Nb2 {[%emt 0:00:14]} 47. Na3 {[%emt 0:00:14]} c4 {[%emt 0:00:15]} 48. Nc2 {[%emt 0:00:14]} Ke7 {[%emt 0:00:19]} 49. Kf2 {[%emt 0:00:10]} Ke6 {[%emt 0:00:27]} 50. Ke3 {[%emt 0:00:06]} g5 {[%emt 0:00:54]} 51. fxg5 {[%emt 0:00:10]} hxg5 {[%emt 0:00:07]} 52. Ke4 {[%emt 0:00:05]} Nd3 {[%emt 0:01:03]} 53. Ne3 {[%emt 0:01:33]} Nb2 {[%emt 0:01:04]} 54. Nd5 {[%emt 0:00:26]} f5+ {[%emt 0:00:41]} 0-1

[Event "DVM U12 2024"]
[Site "Heidelberg"]
[Date "2024.12.28"]
[Round "4"]
[White "Vartanian, Roman"]
[Black "Jahn, Gustav"]
[Result "1/2-1/2"]
[ECO "A90"]
[WhiteElo "1853"]
[BlackElo "1822"]
[Annotator "NA RC"]
[PlyCount "81"]
[EventDate "2024.12.23"]
[EventType "team-tourn"]
[EventRounds "7"]
[EventCountry "GER"]
[SourceTitle "playchess.com"]
[Source "ChessBase"]
[SourceQuality "1"]
[TimeControl "40/5400+30:1800+30"]

1. Nf3 {[%emt 0:00:07]} d5 {[%emt 0:00:09]} 2. d4 {[%emt 0:00:05]} c6 {[%emt 0:00:24]} 3. c4 {[%emt 0:00:11]} e6 {[%emt 0:01:42]} 4. Nc3 {[%emt 0:00:06]} f5 {[%emt 0:00:33]} 5. g3 {[%emt 0:00:38]} Nf6 {[%emt 0:00:26]} 6. Bg2 {[%emt 0:00:09]} Bd6 {[%emt 0:01:02]} 7. O-O {[%emt 0:00:18]} O-O {[%emt 0:00:30]} 8. Qb3 {[%emt 0:01:02]} Nbd7 {[%emt 0:01:12]} 9. Bg5 {[%emt 0:02:16]} h6 {[%emt 0:02:05]} 10. Bxf6 {[%emt 0:00:26]} Nxf6 {[%emt 0:00:31]} 11. Rfe1 {[%emt 0:05:17]} Ne4 {[%emt 0:06:57]} 12. a4 {[%emt 0:08:20]} Bd7 {[%emt 0:02:57]} 13. c5 {[%emt 0:10:50]} Bc7 {[%emt 0:06:27]} 14. Qa3 {[%emt 0:02:23]} b6 {[%emt 0:02:59]} 15. cxb6 {[%emt 0:08:46]} Bxb6 {[%emt 0:00:40]} 16. a5 {[%emt 0:01:29]} Bc7 {[%emt 0:00:14]} 17. b4 {[%emt 0:02:33]} Rb8 {[%emt 0:02:39]} 18. Rab1 {[%emt 0:04:18]} Qe7 {[%emt 0:03:02]} 19. Rb2 {[%emt 0:02:41]} Bd6 {[%emt 0:01:53]} 20. Reb1 {[%emt 0:02:25]} Nxc3 {[%emt 0:04:38]} 21. Qxc3 {[%emt 0:00:10]} Rb5 {[%emt 0:00:17]} 22. Ne1 {[%emt 0:02:58]} Rfb8 {[%emt 0:00:44]} 23. Nd3 {[%emt 0:00:40]} Be8 {[%emt 0:02:24]} 24. f4 {[%emt 0:00:53]} g5 {[%emt 0:04:56]} 25. e3 {[%emt 0:00:55]} g4 {[%emt 0:01:08]} 26. Bf1 {[%emt 0:01:24]} R5b7 {[%emt 0:02:20]} 27. h3 {[%emt 0:12:33]} h5 {[%emt 0:01:13]} 28. h4 {[%emt 0:00:38]} Kh7 {[%emt 0:02:48]} 29. Kh1 {[%emt 0:00:49]} Kg7 {[%emt 0:01:35]} 30. Kh2 {[%emt 0:00:12]} Kh7 {[%emt 0:00:30]} 31. Kg2 {[%emt 0:00:07]} Kg7 {[%emt 0:00:34]} 32. Kf2 {[%emt 0:00:25]} Kf7 {[%emt 0:01:06]} 33. Be2 {[%emt 0:00:09]} Bd7 {[%emt 0:03:17]} 34. Bd1 {[%emt 0:07:32]} Rc7 {[%emt 0:02:50]} 35. Nc5 {[%emt 0:02:55]} Bxc5 {[%emt 0:03:56]} 36. bxc5 {[%emt 0:00:37]} Rxb2+ {[%emt 0:01:04]} 37. Qxb2 {[%emt 0:04:23]} Bc8 {[%emt 0:00:53]} 38. Qb8 {[%emt 0:03:23]} Rb7 {[%emt 0:02:41]} 39. Rxb7 {[%emt 0:00:32]} Qxb7 {[%emt 0:00:11]} 40. Qxb7+ {[%emt 0:00:35]} Bxb7 {[%emt 0:00:08]} 41. Be2 {[%emt 0:30:03]} 1/2-1/2

[Event "DVM U12 2024"]
[Site "Heidelberg"]
[Date "2024.12.28"]
[Round "4"]
[White "Kraus, Linus"]
[Black "Mao, Leo"]
[Result "1-0"]
[ECO "A05"]
[WhiteElo "1803"]
[BlackElo "1752"]
[Annotator "NA RC"]
[PlyCount "67"]
[EventDate "2024.12.23"]
[EventType "team-tourn"]
[EventRounds "7"]
[EventCountry "GER"]
[SourceTitle "playchess.com"]
[Source "ChessBase"]
[SourceQuality "1"]
[TimeControl "40/5400+30:1800+30"]

1. Nf3 {[%emt 0:00:03]} Nf6 {[%emt 0:00:11]} 2. g3 {[%emt 0:00:07]} d5 {[%emt 0:00:09]} 3. Bg2 {[%emt 0:00:08]} g6 {[%emt 0:01:25]} 4. b3 {[%emt 0:00:43]} Bg7 {[%emt 0:01:29]} 5. Bb2 {[%emt 0:00:09]} O-O {[%emt 0:00:39]} 6. c4 {[%emt 0:00:33]} dxc4 {[%emt 0:08:50]} 7. bxc4 {[%emt 0:00:13]} c6 {[%emt 0:08:47]} 8. Nc3 {[%emt 0:04:09]} Nbd7 {[%emt 0:08:23]} 9. d3 {[%emt 0:02:51]} Rb8 {[%emt 0:02:05]} 10. O-O {[%emt 0:05:30]} b5 {[%emt 0:04:03]} 11. Nd4 {[%emt 0:00:24]} Rb6 {[%emt 0:17:23]} 12. Nxc6 {[%emt 0:00:43]} Qe8 {[%emt 0:03:01]} 13. Nxb5 {[%emt 0:01:30]} Nb8 {[%emt 0:02:21]} 14. Nxb8 {[%emt 0:00:57]} Rxb8 {[%emt 0:00:44]} 15. Be5 {[%emt 0:00:53]} Nd7 {[%emt 0:04:34]} 16. Bxb8 {[%emt 0:02:21]} Bxa1 {[%emt 0:00:12]} 17. Bxa7 {[%emt 0:00:12]} Bg7 {[%emt 0:00:45]} 18. Bd4 {[%emt 0:00:12]} Bxd4 {[%emt 0:01:17]} 19. Nxd4 {[%emt 0:00:13]} e5 {[%emt 0:00:18]} 20. Nb5 {[%emt 0:00:09]} f5 {[%emt 0:01:08]} 21. a4 {[%emt 0:01:29]} f4 {[%emt 0:00:17]} 22. a5 {[%emt 0:02:01]} Qd8 {[%emt 0:01:35]} 23. Bd5+ {[%emt 0:01:38]} Kg7 {[%emt 0:00:25]} 24. Qa1 {[%emt 0:02:04]} Ba6 {[%emt 0:01:08]} 25. Na7 {[%emt 0:00:51]} Qg5 {[%emt 0:03:08]} 26. Qa4 {[%emt 0:02:47]} Nf6 {[%emt 0:02:52]} 27. Qb4 {[%emt 0:04:20]} Nxd5 {[%emt 0:04:20]} 28. cxd5 {[%emt 0:00:10]} h5 {[%emt 0:00:42]} 29. Qe4 {[%emt 0:07:09]} h4 {[%emt 0:07:22]} 30. Nc6 {[%emt 0:00:47]} Re8 {[%emt 0:08:10]} 31. d6 {[%emt 0:03:04]} Bc8 {[%emt 0:02:13]} 32. Rb1 {[%emt 0:04:04]} hxg3 {[%emt 0:02:47]} 33. fxg3 {[%emt 0:01:17]} Bh3 {[%emt 0:03:24]} 34. d7 {[%emt 0:01:16]} 1-0

[Event "DVM U12 2024"]
[Site "Heidelberg"]
[Date "2024.12.28"]
[Round "4"]
[White "Kovalskyy, Alicia"]
[Black "Vu Hoang Bach"]
[Result "1-0"]
[ECO "B13"]
[WhiteElo "1758"]
[BlackElo "1779"]
[Annotator "NA RC"]
[PlyCount "125"]
[EventDate "2024.12.23"]
[EventType "team-tourn"]
[EventRounds "7"]
[EventCountry "GER"]
[SourceTitle "playchess.com"]
[Source "ChessBase"]
[SourceQuality "1"]
[TimeControl "40/5400+30:1800+30"]

1. e4 {[%emt 0:00:02]} c6 {[%emt 0:00:05]} 2. d4 {[%emt 0:00:05]} d5 {[%emt 0:00:03]} 3. exd5 {[%emt 0:00:31]} cxd5 {[%emt 0:00:03]} 4. Bd3 {[%emt 0:00:03]} Nc6 {[%emt 0:00:16]} 5. c3 {[%emt 0:00:06]} Nf6 {[%emt 0:00:06]} 6. h3 {[%emt 0:00:20]} e6 {[%emt 0:00:40]} 7. Nf3 {[%emt 0:00:38]} Bd6 {[%emt 0:00:56]} 8. O-O {[%emt 0:01:05]} Qc7 {[%emt 0:03:38]} 9. Re1 {[%emt 0:01:33]} Ne7 {[%emt 0:05:23]} 10. Ne5 {[%emt 0:04:42]} O-O {[%emt 0:03:11]} 11. Bg5 {[%emt 0:03:24]} Ne8 {[%emt 0:03:36]} 12. Bxe7 {[%emt 0:20:47]} Qxe7 {[%emt 0:00:27]} 13. Qh5 {[%emt 0:01:10]} f5 {[%emt 0:01:49]} 14. Nd2 {[%emt 0:07:54]} Nf6 {[%emt 0:00:50]} 15. Qg5 {[%emt 0:04:18]} Ne4 {[%emt 0:04:06]} 16. Qxe7 {[%emt 0:00:08]} Bxe7 {[%emt 0:00:06]} 17. Nf1 {[%emt 0:07:05]} Bf6 {[%emt 0:03:42]} 18. f3 {[%emt 0:00:35]} Bxe5 {[%emt 0:01:28]} 19. dxe5 {[%emt 0:07:18]} Nc5 {[%emt 0:00:16]} 20. Bc2 {[%emt 0:00:07]} a5 {[%emt 0:03:25]} 21. Ng3 {[%emt 0:01:50]} Bd7 {[%emt 0:03:12]} 22. Ne2 {[%emt 0:01:27]} Rfc8 {[%emt 0:02:37]} 23. Nd4 {[%emt 0:06:03]} Kf8 {[%emt 0:02:07]} 24. Kf2 {[%emt 0:07:15]} Ke7 {[%emt 0:00:30]} 25. Ke3 {[%emt 0:03:34]} Ba4 {[%emt 0:01:36]} 26. b3 {[%emt 0:01:48]} Be8 {[%emt 0:00:30]} 27. a4 {[%emt 0:00:33]} h6 {[%emt 0:02:28]} 28. Kd2 {[%emt 0:03:05]} Bd7 {[%emt 0:05:12]} 29. Rh1 {[%emt 0:04:19]} b6 {[%emt 0:01:21]} 30. Rab1 {[%emt 0:01:27]} Ra7 {[%emt 0:00:44]} 31. Rbc1 {[%emt 0:00:56]} Be8 {[%emt 0:01:15]} 32. h4 {[%emt 0:01:10]} Nd7 {[%emt 0:00:44]} 33. Nb5 {[%emt 0:01:06]} Raa8 {[%emt 0:00:06]} 34. Rhe1 {[%emt 0:00:59]} Rc5 {[%emt 0:02:54]} 35. Bd3 {[%emt 0:00:54]} Nf8 {[%emt 0:01:39]} 36. g3 {[%emt 0:04:00]} Ng6 {[%emt 0:02:16]} 37. Nd4 {[%emt 0:01:31]} Nh8 {[%emt 0:01:20]} 38. Re2 {[%emt 0:02:09]} Nf7 {[%emt 0:01:02]} 39. f4 {[%emt 0:03:05]} Nd8 {[%emt 0:00:28]} 40. Rg2 {[%emt 0:00:13]} h5 {[%emt 0:00:16]} 41. Rgg1 {[%emt 0:31:04]} Nc6 {[%emt 0:30:21]} 42. Nxc6+ {[%emt 0:00:00]} Bxc6 {[%emt 0:00:00]} 43. Ra1 {[%emt 0:00:00]} Bd7 {[%emt 0:00:00]} 44. Rgc1 {[%emt 0:00:00]} g6 {[%emt 0:00:00]} 45. Rc2 {[%emt 0:00:00]} b5 {[%emt 0:00:00]} 46. axb5 {[%emt 0:00:00]} Bxb5 {[%emt 0:00:00]} 47. b4 {[%emt 0:00:00]} Bxd3 {[%emt 0:00:00]} 48. Kxd3 {[%emt 0:00:00]} Rb5 {[%emt 0:00:00]} 49. Rca2 {[%emt 0:00:00]} a4 {[%emt 0:00:00]} 50. Rxa4 {[%emt 0:00:00]} Rd8 {[%emt 0:00:00]} 51. Ra7+ {[%emt 0:00:00]} Kf8 {[%emt 0:00:00]} 52. Rh7 {[%emt 0:00:00]} Kg8 {[%emt 0:00:00]} 53. Raa7 {[%emt 0:00:00]} d4 {[%emt 0:00:00]} 54. Rag7+ {[%emt 0:00:00]} Kf8 {[%emt 0:00:00]} 55. Rxg6 {[%emt 0:00:00]} dxc3+ {[%emt 0:00:00]} 56. Kxc3 {[%emt 0:00:00]} Rc8+ {[%emt 0:00:00]} 57. Kb3 {[%emt 0:00:00]} Rcb8 {[%emt 0:00:00]} 58. Rh8+ {[%emt 0:00:00]} Kf7 {[%emt 0:00:00]} 59. Rf6+ {[%emt 0:00:00]} Ke7 {[%emt 0:00:00]} 60. Rh7+ {[%emt 0:00:00]} Ke8 {[%emt 0:00:00]} 61. Rxe6+ {[%emt 0:00:00]} Kf8 {[%emt 0:00:00]} 62. Rh8+ {[%emt 0:00:00]} Kg7 {[%emt 0:00:00]} 63. Rxb8 {[%emt 0:00:00]} 1-0

[Event "DVM U12 2024"]
[Site "Heidelberg"]
[Date "2024.12.28"]
[Round "4"]
[White "Menke, Raphael Wilhelm"]
[Black "Lieberknecht, Pascal"]
[Result "1-0"]
[ECO "B07"]
[WhiteElo "1742"]
[BlackElo "1212"]
[Annotator "NA RC"]
[PlyCount "38"]
[EventDate "2024.12.23"]
[EventType "team-tourn"]
[EventRounds "7"]
[EventCountry "GER"]
[SourceTitle "playchess.com"]
[Source "ChessBase"]
[SourceQuality "1"]
[TimeControl "40/5400+30:1800+30"]

1. e4 {[%emt 0:00:01]} d6 {[%emt 0:00:10]} 2. d4 {[%emt 0:00:05]} Nf6 {[%emt 0:00:04]} 3. Nc3 {[%emt 0:00:08]} g6 {[%emt 0:00:09]} 4. Bg5 {[%emt 0:00:07]} Bg7 {[%emt 0:00:15]} 5. Qd2 {[%emt 0:00:04]} b6 {[%emt 0:01:49]} 6. O-O-O {[%emt 0:00:22]} Bb7 {[%emt 0:00:05]} 7. f3 {[%emt 0:00:04]} Nc6 {[%emt 0:00:25]} 8. Bh6 {[%emt 0:00:07]} Bxh6 {[%emt 0:00:08]} 9. Qxh6 {[%emt 0:00:12]} Qd7 {[%emt 0:00:44]} 10. e5 {[%emt 0:00:55]} dxe5 {[%emt 0:03:41]} 11. dxe5 {[%emt 0:00:07]} Nd5 {[%emt 0:00:08]} 12. Nxd5 {[%emt 0:00:21]} O-O-O {[%emt 0:00:12]} 13. Nxb6+ {[%emt 0:00:15]} axb6 {[%emt 0:00:18]} 14. Rxd7 {[%emt 0:00:04]} Rxd7 {[%emt 0:00:06]} 15. Bb5 {[%emt 0:00:08]} Rhd8 {[%emt 0:00:20]} 16. Ne2 {[%emt 0:00:15]} Rd5 {[%emt 0:00:13]} 17. Nc3 {[%emt 0:00:41]} Rxe5 {[%emt 0:00:11]} 18. Rd1 {[%emt 0:01:21]} Rxd1+ {[%emt 0:00:52]} 19. Kxd1 {[%emt 0:00:07]} Nd4 {[%emt 0:00:30]} 1-0